[Event "Early-Titled-Tuesday-Blitz-March-05-2024"]
[Site "Chess.com"]
[Date "2024.03.05"]
[Round "9"]
[White "moro182"]
[Black "VladimirKramnik"]
[Result "0-1"]
[WhiteElo "2841"]
[BlackElo "2975"]
[TimeControl "180+1"]
[EndTime "9:46:22 PST"]
[Termination "VladimirKramnik won by resignation"]

1. d4 {[%clk 0:03:00.9]} 1... Nf6 {[%clk 0:02:59]} 2. Nf3 {[%clk 0:02:59.9]}
2... d5 {[%clk 0:02:58]} 3. Bf4 {[%clk 0:02:59.9]} 3... c5 {[%clk 0:02:57.2]} 4.
e3 {[%clk 0:03:00.4]} 4... Nc6 {[%clk 0:02:57.7]} 5. Nbd2 {[%clk 0:03:00.6]}
5... Bg4 {[%clk 0:02:58.1]} 6. c3 {[%clk 0:02:59]} 6... e6 {[%clk 0:02:58.5]} 7.
Qb3 {[%clk 0:02:48.7]} 7... Qc8 {[%clk 0:02:58.1]} 8. Ne5 {[%clk 0:02:36.9]}
8... Nxe5 {[%clk 0:02:55.2]} 9. Bxe5 {[%clk 0:02:37.8]} 9... c4 {[%clk 0:02:43]}
10. Qb5+ {[%clk 0:02:13.1]} 10... Nd7 {[%clk 0:02:37.3]} 11. Bg3 {[%clk
0:02:04.1]} 11... Be7 {[%clk 0:02:33.8]} 12. f3 {[%clk 0:01:56.2]} 12... a6
{[%clk 0:02:21.5]} 13. Qa4 {[%clk 0:01:54.4]} 13... Bh5 {[%clk 0:02:19.3]} 14.
e4 {[%clk 0:01:51.9]} 14... O-O {[%clk 0:02:16.4]} 15. Be2 {[%clk 0:01:50.8]}
15... f5 {[%clk 0:02:04.8]} 16. Qd1 {[%clk 0:01:23.7]} 16... b5 {[%clk
0:01:51.7]} 17. O-O {[%clk 0:01:18.3]} 17... f4 {[%clk 0:01:48.4]} 18. Bf2
{[%clk 0:01:18.2]} 18... Nb6 {[%clk 0:01:46.4]} 19. Re1 {[%clk 0:01:17.6]} 19...
Qc6 {[%clk 0:01:39.3]} 20. Qc1 {[%clk 0:00:55.6]} 20... a5 {[%clk 0:01:27.6]}
21. b3 {[%clk 0:00:39.9]} 21... Bg6 {[%clk 0:01:24.6]} 22. bxc4 {[%clk
0:00:39.1]} 22... bxc4 {[%clk 0:01:19]} 23. Bd1 {[%clk 0:00:38.3]} 23... Rfe8
{[%clk 0:01:08.7]} 24. Bc2 {[%clk 0:00:38.1]} 24... Bf8 {[%clk 0:00:59.1]} 25.
Rb1 {[%clk 0:00:37.9]} 25... Na4 {[%clk 0:00:56.3]} 26. exd5 {[%clk 0:00:30.4]}
26... exd5 {[%clk 0:00:56.1]} 27. Rxe8 {[%clk 0:00:25.7]} 27... Rxe8 {[%clk
0:00:54.7]} 28. Bxg6 {[%clk 0:00:25.2]} 28... Qxg6 {[%clk 0:00:53.5]} 29. Rb5
{[%clk 0:00:25.4]} 29... Qd3 {[%clk 0:00:49.8]} 30. Nb1 {[%clk 0:00:25.5]} 30...
Re2 {[%clk 0:00:40.1]} 31. Rxa5 {[%clk 0:00:25.2]} 31... Rb2 {[%clk 0:00:36.7]}
32. Na3 {[%clk 0:00:18.9]} 32... Nxc3 {[%clk 0:00:33]} 33. Qe1 {[%clk
0:00:14.8]} 33... Re2 {[%clk 0:00:28.1]} 34. Qf1 {[%clk 0:00:15.2]} 34... Rxa2
{[%clk 0:00:27.7]} 35. Qxd3 {[%clk 0:00:12.5]} 35... cxd3 {[%clk 0:00:26.7]} 36.
Be1 {[%clk 0:00:12.9]} 36... d2 {[%clk 0:00:25.9]} 37. Bxd2 {[%clk 0:00:13.2]}
37... Rxd2 {[%clk 0:00:26.3]} 38. Ra8 {[%clk 0:00:13.4]} 38... Rxd4 {[%clk
0:00:22.1]} 39. h4 {[%clk 0:00:12]} 39... Ra4 {[%clk 0:00:21.9]} 0-1

[Event "Early-Titled-Tuesday-Blitz-March-05-2024"]
[Site "Chess.com"]
[Date "2024.03.05"]
[Round "9"]
[White "DvaHrasta"]
[Black "Semetey"]
[Result "0-1"]
[WhiteElo "2448"]
[BlackElo "2581"]
[TimeControl "180+1"]
[EndTime "9:46:22 PST"]
[Termination "Semetey won on time"]

1. c4 {[%clk 0:03:00.9]} 1... g6 {[%clk 0:02:46.9]} 2. g3 {[%clk 0:03:00.9]}
2... Bg7 {[%clk 0:02:41.9]} 3. Bg2 {[%clk 0:03:01.1]} 3... f5 {[%clk 0:02:36.6]}
4. Nc3 {[%clk 0:02:59.3]} 4... Nf6 {[%clk 0:02:34.6]} 5. d3 {[%clk 0:02:55.4]}
5... O-O {[%clk 0:02:23.4]} 6. e4 {[%clk 0:02:55.2]} 6... d6 {[%clk 0:02:21.2]}
7. exf5 {[%clk 0:02:54.4]} 7... gxf5 {[%clk 0:02:08.8]} 8. h4 {[%clk 0:02:52.9]}
8... Nc6 {[%clk 0:02:00.3]} 9. h5 {[%clk 0:02:52.9]} 9... h6 {[%clk 0:01:51.9]}
10. Nf3 {[%clk 0:02:52.2]} 10... e5 {[%clk 0:01:50.2]} 11. Nh4 {[%clk
0:02:51.6]} 11... Ne7 {[%clk 0:01:45.7]} 12. Nd5 {[%clk 0:02:32.4]} 12... Nfxd5
{[%clk 0:01:43]} 13. cxd5 {[%clk 0:02:32.3]} 13... Qe8 {[%clk 0:01:41.3]} 14.
Bd2 {[%clk 0:02:26.4]} 14... Bd7 {[%clk 0:01:41.1]} 15. Rc1 {[%clk 0:02:23.3]}
15... Rc8 {[%clk 0:01:40.9]} 16. b3 {[%clk 0:02:15.2]} 16... Qf7 {[%clk
0:01:34.1]} 17. Qf3 {[%clk 0:01:59]} 17... c6 {[%clk 0:01:28.7]} 18. dxc6 {[%clk
0:01:46.5]} 18... Bxc6 {[%clk 0:01:27.9]} 19. Qe2 {[%clk 0:01:43.1]} 19... Bxg2
{[%clk 0:01:22.5]} 20. Nxg2 {[%clk 0:01:42.6]} 20... Nd5 {[%clk 0:01:14.5]} 21.
O-O {[%clk 0:01:39]} 21... f4 {[%clk 0:01:13.8]} 22. Qg4 {[%clk 0:01:31.3]}
22... Rxc1 {[%clk 0:01:05.9]} 23. Rxc1 {[%clk 0:01:29.5]} 23... Nf6 {[%clk
0:01:06.4]} 24. Qg6 {[%clk 0:01:23.7]} 24... Nxh5 {[%clk 0:01:05.7]} 25. Qxf7+
{[%clk 0:01:21.8]} 25... Rxf7 {[%clk 0:01:05.4]} 26. Rc8+ {[%clk 0:01:21.5]}
26... Kh7 {[%clk 0:01:04]} 27. g4 {[%clk 0:01:20.9]} 27... Nf6 {[%clk
0:01:03.7]} 28. f3 {[%clk 0:01:21]} 28... Nd5 {[%clk 0:01:02.7]} 29. Nh4 {[%clk
0:01:16]} 29... Rc7 {[%clk 0:01:02.1]} 30. Rxc7 {[%clk 0:01:13.4]} 30... Nxc7
{[%clk 0:01:01.9]} 31. Nf5 {[%clk 0:01:13.3]} 31... Bf8 {[%clk 0:01:02.1]} 32.
d4 {[%clk 0:01:09]} 32... Ne6 {[%clk 0:00:58]} 33. dxe5 {[%clk 0:01:01.8]} 33...
dxe5 {[%clk 0:00:58.1]} 34. Bc3 {[%clk 0:01:01.3]} 34... Bc5+ {[%clk 0:00:57.9]}
35. Kf1 {[%clk 0:01:00.8]} 35... Bd4 {[%clk 0:00:56.3]} 36. Bxd4 {[%clk
0:00:55.7]} 36... Nxd4 {[%clk 0:00:54.2]} 37. Nxd4 {[%clk 0:00:55.7]} 37... exd4
{[%clk 0:00:55.1]} 38. Ke2 {[%clk 0:00:56]} 38... Kg6 {[%clk 0:00:55.6]} 39. Kd3
{[%clk 0:00:56.3]} 39... Kg5 {[%clk 0:00:55.8]} 40. Kxd4 {[%clk 0:00:55.9]}
40... Kh4 {[%clk 0:00:56]} 41. Ke4 {[%clk 0:00:51.7]} 41... Kg3 {[%clk
0:00:56.2]} 42. a3 {[%clk 0:00:51.3]} 42... b5 {[%clk 0:00:53.1]} 43. a4 {[%clk
0:00:12.8]} 43... bxa4 {[%clk 0:00:54]} 44. bxa4 {[%clk 0:00:12.4]} 44... a5
{[%clk 0:00:53.8]} 0-1

[Event "Early-Titled-Tuesday-Blitz-March-05-2024"]
[Site "Chess.com"]
[Date "2024.03.05"]
[Round "9"]
[White "BeardedNM"]
[Black "Darius321"]
[Result "1-0"]
[WhiteElo "2222"]
[BlackElo "2333"]
[TimeControl "180+1"]
[EndTime "9:46:23 PST"]
[Termination "BeardedNM won by resignation"]

1. e4 {[%clk 0:02:55]} 1... c5 {[%clk 0:02:58.1]} 2. Nf3 {[%clk 0:02:55.1]} 2...
g6 {[%clk 0:02:57.7]} 3. d4 {[%clk 0:02:55.3]} 3... cxd4 {[%clk 0:02:58.6]} 4.
Nxd4 {[%clk 0:02:56]} 4... Bg7 {[%clk 0:02:58.7]} 5. Nc3 {[%clk 0:02:56.1]} 5...
Nc6 {[%clk 0:02:58.8]} 6. Be3 {[%clk 0:02:56.8]} 6... Nf6 {[%clk 0:02:58.9]} 7.
Bc4 {[%clk 0:02:57.4]} 7... O-O {[%clk 0:02:58.6]} 8. Bb3 {[%clk 0:02:58]} 8...
d5 {[%clk 0:02:52]} 9. exd5 {[%clk 0:02:52.9]} 9... Na5 {[%clk 0:02:47.7]} 10.
Qd2 {[%clk 0:02:31.3]} 10... Nxb3 {[%clk 0:02:45.4]} 11. Nxb3 {[%clk 0:02:31.5]}
11... b6 {[%clk 0:02:40]} 12. h3 {[%clk 0:02:22.2]} 12... Bb7 {[%clk 0:02:39.8]}
13. O-O-O {[%clk 0:02:13]} 13... Qd7 {[%clk 0:02:39.2]} 14. Bh6 {[%clk
0:02:10.8]} 14... Rfd8 {[%clk 0:02:34]} 15. Bxg7 {[%clk 0:02:10.5]} 15... Kxg7
{[%clk 0:02:34.9]} 16. Rhe1 {[%clk 0:02:05.4]} 16... a5 {[%clk 0:02:25.1]} 17.
a4 {[%clk 0:01:56.4]} 17... Rac8 {[%clk 0:02:12]} 18. Qe3 {[%clk 0:01:48.3]}
18... Qd6 {[%clk 0:01:41.3]} 19. Qxe7 {[%clk 0:01:42]} 19... Qf4+ {[%clk
0:01:34.1]} 20. Qe3 {[%clk 0:01:40.8]} 20... Qb4 {[%clk 0:01:20.8]} 21. Kb1
{[%clk 0:01:31.5]} 21... b5 {[%clk 0:00:58.8]} 22. axb5 {[%clk 0:01:13.3]} 22...
a4 {[%clk 0:00:58.1]} 23. Rd4 {[%clk 0:01:13.4]} 23... Rc4 {[%clk 0:00:54.5]}
24. Rxc4 {[%clk 0:01:01.9]} 24... Qxc4 {[%clk 0:00:54.6]} 25. Qd4 {[%clk
0:00:58.7]} 25... Qxd4 {[%clk 0:00:45.8]} 26. Nxd4 {[%clk 0:00:58.5]} 26... Nxd5
{[%clk 0:00:41.7]} 27. Nxa4 {[%clk 0:00:52]} 27... Nf4 {[%clk 0:00:41.3]} 28.
Nc6 {[%clk 0:00:50.8]} 28... Bxc6 {[%clk 0:00:35.8]} 29. bxc6 {[%clk 0:00:51]}
29... Rc8 {[%clk 0:00:36.2]} 30. Re4 {[%clk 0:00:32.5]} 30... Nxg2 {[%clk
0:00:23.7]} 31. Rc4 {[%clk 0:00:32]} 31... Rc7 {[%clk 0:00:22.6]} 32. b4 {[%clk
0:00:31.5]} 32... Ne1 {[%clk 0:00:19.6]} 33. b5 {[%clk 0:00:29.3]} 33... Nf3
{[%clk 0:00:19.6]} 34. b6 {[%clk 0:00:28.8]} 34... Nd2+ {[%clk 0:00:14.1]} 35.
Kc1 {[%clk 0:00:25.7]} 35... Nxc4 {[%clk 0:00:12.3]} 36. bxc7 {[%clk 0:00:25.9]}
36... Nd6 {[%clk 0:00:11.2]} 37. Nb6 {[%clk 0:00:20.4]} 37... Kf6 {[%clk
0:00:07.1]} 38. c8=Q {[%clk 0:00:20.7]} 38... Nxc8 {[%clk 0:00:07]} 39. Nxc8
{[%clk 0:00:21.6]} 1-0

[Event "Early-Titled-Tuesday-Blitz-March-05-2024"]
[Site "Chess.com"]
[Date "2024.03.05"]
[Round "9"]
[White "SergioMoralesG"]
[Black "pr1105"]
[Result "0-1"]
[WhiteElo "2477"]
[BlackElo "2367"]
[TimeControl "180+1"]
[EndTime "9:46:25 PST"]
[Termination "pr1105 won on time"]

1. d4 {[%clk 0:03:00.9]} 1... Nf6 {[%clk 0:02:50.4]} 2. c4 {[%clk 0:02:59.8]}
2... e6 {[%clk 0:02:50]} 3. Nf3 {[%clk 0:02:59.8]} 3... d5 {[%clk 0:02:49.6]} 4.
Nc3 {[%clk 0:03:00.4]} 4... Bb4 {[%clk 0:02:46.5]} 5. Bg5 {[%clk 0:03:00.3]}
5... h6 {[%clk 0:02:46.3]} 6. Bxf6 {[%clk 0:02:59.9]} 6... Qxf6 {[%clk
0:02:47.2]} 7. e3 {[%clk 0:03:00.6]} 7... O-O {[%clk 0:02:46.4]} 8. Qb3 {[%clk
0:03:00.6]} 8... c5 {[%clk 0:02:31.5]} 9. cxd5 {[%clk 0:02:59.9]} 9... exd5
{[%clk 0:02:29.9]} 10. dxc5 {[%clk 0:03:00]} 10... Nc6 {[%clk 0:02:27.6]} 11.
O-O-O {[%clk 0:02:59.3]} 11... Bxc3 {[%clk 0:01:50.4]} 12. Qxc3 {[%clk
0:02:58.5]} 12... Qxc3+ {[%clk 0:01:50.5]} 13. bxc3 {[%clk 0:02:59.4]} 13... Be6
{[%clk 0:01:50.9]} 14. Nd4 {[%clk 0:02:58.6]} 14... Ne5 {[%clk 0:01:43]} 15. Kb2
{[%clk 0:02:24.8]} 15... Rac8 {[%clk 0:01:40.5]} 16. Nb3 {[%clk 0:02:14.2]}
16... Nd7 {[%clk 0:01:33.5]} 17. Be2 {[%clk 0:02:04.7]} 17... Nxc5 {[%clk
0:01:33.8]} 18. Nxc5 {[%clk 0:02:05]} 18... Rxc5 {[%clk 0:01:34.7]} 19. Rd4
{[%clk 0:02:05.4]} 19... Rfc8 {[%clk 0:01:33.1]} 20. Rc1 {[%clk 0:02:05.3]}
20... g5 {[%clk 0:01:14.5]} 21. g4 {[%clk 0:02:02.1]} 21... Kf8 {[%clk
0:01:12.3]} 22. h3 {[%clk 0:02:01.2]} 22... Ke7 {[%clk 0:01:11.9]} 23. f4 {[%clk
0:01:59.6]} 23... f6 {[%clk 0:01:08.8]} 24. f5 {[%clk 0:01:56.7]} 24... Bf7
{[%clk 0:01:08.2]} 25. Bf3 {[%clk 0:01:50.7]} 25... b5 {[%clk 0:01:03.9]} 26.
Rcd1 {[%clk 0:01:15.6]} 26... Rxc3 {[%clk 0:00:56.5]} 27. Bxd5 {[%clk
0:01:15.7]} 27... Be8 {[%clk 0:00:32.5]} 28. Re4+ {[%clk 0:01:00.6]} 28... Kf8
{[%clk 0:00:32.6]} 29. Bb3 {[%clk 0:00:48.7]} 29... a5 {[%clk 0:00:29]} 30. Rd6
{[%clk 0:00:41.8]} 30... a4 {[%clk 0:00:18.3]} 31. Rxf6+ {[%clk 0:00:41.8]}
31... Kg7 {[%clk 0:00:18.3]} 32. Rfe6 {[%clk 0:00:38.2]} 32... Bf7 {[%clk
0:00:09.8]} 33. f6+ {[%clk 0:00:22.5]} 33... Kf8 {[%clk 0:00:10]} 0-1

[Event "Early-Titled-Tuesday-Blitz-March-05-2024"]
[Site "Chess.com"]
[Date "2024.03.05"]
[Round "9"]
[White "wannabe2700"]
[Black "Zhigalko_Sergei"]
[Result "1-0"]
[WhiteElo "2790"]
[BlackElo "2890"]
[TimeControl "180+1"]
[EndTime "9:46:27 PST"]
[Termination "wannabe2700 won on time"]

1. b3 {[%clk 0:02:56.9]} 1... e5 {[%clk 0:02:59]} 2. Bb2 {[%clk 0:02:57.8]} 2...
d6 {[%clk 0:02:59.6]} 3. e3 {[%clk 0:02:57.8]} 3... Nf6 {[%clk 0:02:59.9]} 4. c4
{[%clk 0:02:58.4]} 4... Be7 {[%clk 0:02:59.7]} 5. Nc3 {[%clk 0:02:58.2]} 5...
O-O {[%clk 0:03:00.1]} 6. d4 {[%clk 0:02:58.8]} 6... Nbd7 {[%clk 0:02:51.4]} 7.
Nf3 {[%clk 0:02:58.5]} 7... Re8 {[%clk 0:02:50.7]} 8. Be2 {[%clk 0:02:58]} 8...
c6 {[%clk 0:02:47.1]} 9. O-O {[%clk 0:02:57.3]} 9... e4 {[%clk 0:02:45.2]} 10.
Nd2 {[%clk 0:02:57.5]} 10... d5 {[%clk 0:02:45.3]} 11. cxd5 {[%clk 0:02:58]}
11... cxd5 {[%clk 0:02:44.3]} 12. Rc1 {[%clk 0:02:58.5]} 12... Nf8 {[%clk
0:02:27.9]} 13. Nb5 {[%clk 0:02:06.9]} 13... Ne6 {[%clk 0:02:26.9]} 14. Ba3
{[%clk 0:02:07.5]} 14... Bxa3 {[%clk 0:02:08.8]} 15. Nxa3 {[%clk 0:02:08.4]}
15... Bd7 {[%clk 0:02:08.3]} 16. Qc2 {[%clk 0:02:08.2]} 16... Qe7 {[%clk
0:01:55.7]} 17. Qb2 {[%clk 0:02:06.9]} 17... h5 {[%clk 0:01:51.5]} 18. Bb5
{[%clk 0:01:50.8]} 18... h4 {[%clk 0:01:48.3]} 19. h3 {[%clk 0:01:42.2]} 19...
a6 {[%clk 0:01:23]} 20. Bxd7 {[%clk 0:01:41.5]} 20... Qxd7 {[%clk 0:01:17.2]}
21. b4 {[%clk 0:01:40.5]} 21... Ng5 {[%clk 0:01:17]} 22. Kh2 {[%clk 0:01:38.1]}
22... Qd6+ {[%clk 0:01:10]} 23. Kh1 {[%clk 0:01:37.1]} 23... Qd7 {[%clk
0:01:09.9]} 24. Kh2 {[%clk 0:01:37]} 24... Qd6+ {[%clk 0:00:54.3]} 25. Kh1
{[%clk 0:01:36.7]} 25... Nh5 {[%clk 0:00:51.8]} 26. b5 {[%clk 0:01:23]} 26...
Qe6 {[%clk 0:00:50]} 27. Kh2 {[%clk 0:01:22.2]} 27... Qd6+ {[%clk 0:00:49.7]}
28. Kh1 {[%clk 0:01:22.5]} 28... Re6 {[%clk 0:00:47.2]} 29. Rc5 {[%clk
0:01:16.8]} 29... Rg6 {[%clk 0:00:45.3]} 30. Qc3 {[%clk 0:01:07.1]} 30... Nxh3
{[%clk 0:00:26.8]} 31. Rc8+ {[%clk 0:01:05]} 31... Kh7 {[%clk 0:00:26.7]} 32.
Rxa8 {[%clk 0:00:57.4]} 32... Nxf2+ {[%clk 0:00:12.3]} 33. Rxf2 {[%clk
0:00:58.3]} 33... Qg3 {[%clk 0:00:12.3]} 34. Qc8 {[%clk 0:00:58.5]} 34... Rg5
{[%clk 0:00:05.6]} 35. Qg8+ {[%clk 0:00:47.2]} 35... Kh6 {[%clk 0:00:04.1]} 36.
Qxf7 {[%clk 0:00:48.1]} 36... Kh7 {[%clk 0:00:01.6]} 37. Nf1 {[%clk 0:00:45.3]}
37... Qg4 {[%clk 0:00:01.5]} 38. Qg8+ {[%clk 0:00:41.6]} 38... Kg6 {[%clk
0:00:01.6]} 39. Re8 {[%clk 0:00:35.3]} 39... h3 {[%clk 0:00:01]} 40. Re6+ {[%clk
0:00:34.2]} 40... Nf6 {[%clk 0:00:01.2]} 41. Rexf6+ {[%clk 0:00:29.8]} 1-0

[Event "Early-Titled-Tuesday-Blitz-March-05-2024"]
[Site "Chess.com"]
[Date "2024.03.05"]
[Round "9"]
[White "toninhojit"]
[Black "Louis-Paulsen-Fan"]
[Result "1-0"]
[WhiteElo "2503"]
[BlackElo "2247"]
[TimeControl "180+1"]
[EndTime "9:46:28 PST"]
[Termination "toninhojit won on time"]

1. d4 {[%clk 0:03:00.9]} 1... d5 {[%clk 0:02:59.4]} 2. c4 {[%clk 0:03:01.4]}
2... e6 {[%clk 0:02:59.7]} 3. Nf3 {[%clk 0:03:01.9]} 3... c5 {[%clk 0:02:59.8]}
4. e3 {[%clk 0:03:01.3]} 4... Nc6 {[%clk 0:02:59.8]} 5. a3 {[%clk 0:03:01.3]}
5... a6 {[%clk 0:02:59.9]} 6. dxc5 {[%clk 0:03:01.1]} 6... Bxc5 {[%clk
0:02:59.2]} 7. b4 {[%clk 0:03:01.4]} 7... Ba7 {[%clk 0:02:58.5]} 8. Bb2 {[%clk
0:03:01.6]} 8... Nf6 {[%clk 0:02:58.6]} 9. cxd5 {[%clk 0:03:00.8]} 9... exd5
{[%clk 0:02:57.5]} 10. Be2 {[%clk 0:02:56.5]} 10... O-O {[%clk 0:02:56.5]} 11.
O-O {[%clk 0:02:56.8]} 11... Bg4 {[%clk 0:02:53.9]} 12. Nbd2 {[%clk 0:02:54.3]}
12... Re8 {[%clk 0:02:48.9]} 13. h3 {[%clk 0:02:53.9]} 13... Bh5 {[%clk
0:02:47.6]} 14. Nb3 {[%clk 0:02:53.9]} 14... Ne4 {[%clk 0:02:40.9]} 15. Nbd4
{[%clk 0:02:49.8]} 15... Rc8 {[%clk 0:02:35.6]} 16. Rc1 {[%clk 0:02:47.9]} 16...
Qd7 {[%clk 0:02:28.9]} 17. Nxc6 {[%clk 0:02:44.8]} 17... Rxc6 {[%clk 0:01:52.6]}
18. Rxc6 {[%clk 0:02:42.2]} 18... Qxc6 {[%clk 0:01:45.9]} 19. Nd4 {[%clk
0:02:17.4]} 19... Bxe2 {[%clk 0:01:28]} 20. Nxe2 {[%clk 0:02:16.6]} 20... Qc4
{[%clk 0:01:13.8]} 21. Bd4 {[%clk 0:02:11.8]} 21... Bxd4 {[%clk 0:01:11.9]} 22.
Nxd4 {[%clk 0:02:11.6]} 22... Rc8 {[%clk 0:01:10.1]} 23. Qg4 {[%clk 0:02:08.6]}
23... g6 {[%clk 0:01:06.3]} 24. Qd7 {[%clk 0:01:50.3]} 24... Rc7 {[%clk
0:00:58.8]} 25. Qd8+ {[%clk 0:01:44.1]} 25... Kg7 {[%clk 0:00:59.3]} 26. Nf3
{[%clk 0:01:38.8]} 26... Rc8 {[%clk 0:00:42.6]} 27. Qd7 {[%clk 0:01:34]} 27...
Rc7 {[%clk 0:00:43.1]} 28. Qe8 {[%clk 0:01:30]} 28... Qc6 {[%clk 0:00:38.4]} 29.
Qe5+ {[%clk 0:01:24.8]} 29... f6 {[%clk 0:00:35.8]} 30. Qd4 {[%clk 0:01:19.4]}
30... Qc4 {[%clk 0:00:31.7]} 31. Qb6 {[%clk 0:01:16.2]} 31... Qc6 {[%clk
0:00:31.1]} 32. Qa7 {[%clk 0:01:11.4]} 32... b5 {[%clk 0:00:20.1]} 33. Qb8
{[%clk 0:01:11.5]} 33... Rc8 {[%clk 0:00:19.9]} 34. Qf4 {[%clk 0:01:11.5]} 34...
Qc7 {[%clk 0:00:18.6]} 35. Qg4 {[%clk 0:01:05.1]} 35... f5 {[%clk 0:00:17.1]}
36. Qh4 {[%clk 0:01:05.4]} 36... Qd8 {[%clk 0:00:16.3]} 37. Qf4 {[%clk
0:01:04.8]} 37... Qc7 {[%clk 0:00:16.7]} 38. Qh4 {[%clk 0:00:48.1]} 38... h6
{[%clk 0:00:15.7]} 39. Rd1 {[%clk 0:00:42.4]} 39... Qf7 {[%clk 0:00:13.3]} 40.
Qf4 {[%clk 0:00:39.6]} 40... Rc2 {[%clk 0:00:12.5]} 41. Qe5+ {[%clk 0:00:39.3]}
41... Kh7 {[%clk 0:00:12.1]} 42. Rxd5 {[%clk 0:00:36]} 42... Rxf2 {[%clk
0:00:07.6]} 43. Qd4 {[%clk 0:00:35.3]} 1-0

[Event "Early-Titled-Tuesday-Blitz-March-05-2024"]
[Site "Chess.com"]
[Date "2024.03.05"]
[Round "9"]
[White "emeli_chess"]
[Black "LaPiToB"]
[Result "1-0"]
[WhiteElo "2420"]
[BlackElo "2273"]
[TimeControl "180+1"]
[EndTime "9:46:28 PST"]
[Termination "emeli_chess won on time"]

1. d4 {[%clk 0:03:00.9]} 1... Nf6 {[%clk 0:02:59.5]} 2. c4 {[%clk 0:03:01]} 2...
e6 {[%clk 0:02:59.1]} 3. Nc3 {[%clk 0:03:01.1]} 3... Bb4 {[%clk 0:02:59.1]} 4.
Qc2 {[%clk 0:03:01.3]} 4... O-O {[%clk 0:02:57.5]} 5. a3 {[%clk 0:03:00.6]} 5...
Bxc3+ {[%clk 0:02:55.5]} 6. Qxc3 {[%clk 0:03:01]} 6... Ne4 {[%clk 0:02:55.1]} 7.
Qc2 {[%clk 0:03:00.7]} 7... d5 {[%clk 0:02:52.9]} 8. Nf3 {[%clk 0:02:57.5]} 8...
c5 {[%clk 0:02:51]} 9. dxc5 {[%clk 0:02:56.2]} 9... Nxc5 {[%clk 0:02:48.4]} 10.
b4 {[%clk 0:02:53.3]} 10... Ne4 {[%clk 0:02:44]} 11. Bb2 {[%clk 0:02:48.2]}
11... Nc6 {[%clk 0:02:42.4]} 12. e3 {[%clk 0:02:47.2]} 12... Nf6 {[%clk
0:02:30.6]} 13. Bd3 {[%clk 0:02:45.6]} 13... dxc4 {[%clk 0:02:28.7]} 14. Bxc4
{[%clk 0:02:44.6]} 14... Qe7 {[%clk 0:02:21.4]} 15. O-O {[%clk 0:02:43.1]} 15...
Bd7 {[%clk 0:02:16.8]} 16. Bd3 {[%clk 0:02:39.6]} 16... h6 {[%clk 0:02:15.1]}
17. Rfd1 {[%clk 0:02:34.2]} 17... Rac8 {[%clk 0:02:14.6]} 18. Qe2 {[%clk
0:02:31.7]} 18... Rfd8 {[%clk 0:02:13.3]} 19. Rac1 {[%clk 0:02:31.1]} 19... Be8
{[%clk 0:02:12.3]} 20. Bb1 {[%clk 0:02:30.7]} 20... a6 {[%clk 0:01:59.7]} 21.
Rxd8 {[%clk 0:02:27.1]} 21... Rxd8 {[%clk 0:01:57.4]} 22. Qc2 {[%clk 0:02:26.5]}
22... Kf8 {[%clk 0:01:20.3]} 23. h3 {[%clk 0:02:23.9]} 23... b5 {[%clk
0:01:14.5]} 24. Nh2 {[%clk 0:02:11.7]} 24... Na7 {[%clk 0:01:11.7]} 25. Ng4
{[%clk 0:02:09.6]} 25... Rc8 {[%clk 0:01:07]} 26. Qd3 {[%clk 0:02:02.7]} 26...
Rxc1+ {[%clk 0:01:05.1]} 27. Bxc1 {[%clk 0:02:02.9]} 27... Nxg4 {[%clk
0:01:00.1]} 28. hxg4 {[%clk 0:02:02.7]} 28... Nc8 {[%clk 0:00:53.4]} 29. Bb2
{[%clk 0:01:57.7]} 29... f6 {[%clk 0:00:40.4]} 30. Bd4 {[%clk 0:01:52.9]} 30...
Qc7 {[%clk 0:00:29.8]} 31. Bc5+ {[%clk 0:01:52.4]} 31... Ne7 {[%clk 0:00:29.3]}
32. g3 {[%clk 0:01:33.4]} 32... Bf7 {[%clk 0:00:22.7]} 33. Qd6 {[%clk
0:01:25.1]} 33... Qxd6 {[%clk 0:00:22.2]} 34. Bxd6 {[%clk 0:01:25.5]} 34... Ke8
{[%clk 0:00:22.6]} 35. Be4 {[%clk 0:01:23.1]} 35... Nc8 {[%clk 0:00:20.1]} 36.
Bc5 {[%clk 0:01:22]} 36... Kd7 {[%clk 0:00:11.8]} 37. Bb7 {[%clk 0:01:21.8]}
37... Nd6 {[%clk 0:00:09.6]} 38. Bxa6 {[%clk 0:01:18.5]} 38... Be8 {[%clk
0:00:05.2]} 39. Bxd6 {[%clk 0:01:14.8]} 39... Kxd6 {[%clk 0:00:05.5]} 40. Bb7
{[%clk 0:01:15.1]} 40... e5 {[%clk 0:00:04.7]} 41. f4 {[%clk 0:01:11.3]} 41...
Bd7 {[%clk 0:00:04.3]} 42. Bf3 {[%clk 0:01:09.4]} 42... exf4 {[%clk 0:00:04.2]}
43. gxf4 {[%clk 0:01:09.3]} 43... g6 {[%clk 0:00:02.9]} 44. Kf2 {[%clk
0:01:08.5]} 44... Be6 {[%clk 0:00:03]} 45. e4 {[%clk 0:01:03.4]} 45... Bc4
{[%clk 0:00:03]} 46. Ke3 {[%clk 0:01:03.3]} 46... Kc6 {[%clk 0:00:01.5]} 47. Kd4
{[%clk 0:01:03.4]} 47... Kd6 {[%clk 0:00:02]} 48. e5+ {[%clk 0:01:02.3]} 48...
fxe5+ {[%clk 0:00:02.9]} 49. fxe5+ {[%clk 0:01:02.6]} 49... Ke6 {[%clk
0:00:03.8]} 50. a4 {[%clk 0:01:00.9]} 50... Bf1 {[%clk 0:00:03.2]} 51. a5 {[%clk
0:01:00.4]} 51... Kd7 {[%clk 0:00:01.4]} 52. Kc5 {[%clk 0:00:57.9]} 1-0